[Event "Titled Tuesday Blitz January 11 2022"]
[White "Nazaretyan, Tigran"]
[Black "Bryakin, Mikhail"]
[WhiteFideId "24162345"]
[BlackFideId "4165314"]
[WhiteElo "2192"]
[BlackElo "2421"]
[Result "0-1"]
[Round "10"]
[TimeControl "180+1"]
[Date "2022.01.11"]
[WhiteClock "0:00:09"]
[BlackClock "0:01:07"]

1. d4 {[%clk 0:03:00]}  Nf6 {[%clk 0:02:58]} 2. c4 {[%clk 0:03:00]}  g6 {[%clk 0:02:59]} 3. Nc3 {[%clk 0:03:00]}  d5 {[%clk 0:02:59]} 4. Nf3 {[%clk 0:03:00]}  Bg7 {[%clk 0:02:59]} 5. Bg5 {[%clk 0:03:00]}  Ne4 {[%clk 0:02:58]} 6. Bh4 {[%clk 0:03:00]}  Nxc3 {[%clk 0:02:56]} 7. bxc3 {[%clk 0:03:00]}  dxc4 {[%clk 0:02:57]} 8. Qa4+ {[%clk 0:03:00]}  Nd7 {[%clk 0:02:52]} 9. e3 {[%clk 0:02:59]}  O-O {[%clk 0:02:50]} 10. Qa3 {[%clk 0:02:59]}  Bf6 {[%clk 0:02:48]} 11. Bxf6 {[%clk 0:02:52]}  Nxf6 {[%clk 0:02:48]} 12. Bxc4 {[%clk 0:02:53]}  Kg7 {[%clk 0:02:49]} 13. O-O {[%clk 0:02:52]}  b6 {[%clk 0:02:49]} 14. Ne5 {[%clk 0:02:46]}  Bb7 {[%clk 0:02:48]} 15. Ba6 {[%clk 0:02:46]}  Bxa6 {[%clk 0:02:41]} 16. Qxa6 {[%clk 0:02:47]}  Qd6 {[%clk 0:02:38]} 17. a4 {[%clk 0:02:44]}  Nd7 {[%clk 0:02:35]} 18. f4 {[%clk 0:02:36]}  c5 {[%clk 0:02:27]} 19. a5 {[%clk 0:02:32]}  Nxe5 {[%clk 0:02:20]} 20. fxe5 {[%clk 0:02:31]}  Qc7 {[%clk 0:02:11]} 21. Qc4 {[%clk 0:02:26]}  Rac8 {[%clk 0:02:05]} 22. axb6 {[%clk 0:02:24]}  axb6 {[%clk 0:02:05]} 23. e6 {[%clk 0:02:13]}  cxd4 {[%clk 0:02:02]} 24. Qxd4+ {[%clk 0:02:06]}  f6 {[%clk 0:02:01]} 25. Rab1 {[%clk 0:01:57]}  Rfd8 {[%clk 0:01:59]} 26. Qxb6 {[%clk 0:01:55]}  Qxc3 {[%clk 0:01:59]} 27. Rbd1 {[%clk 0:01:26]}  Rxd1 {[%clk 0:01:54]} 28. Rxd1 {[%clk 0:01:25]}  Rc6 {[%clk 0:01:55]} 29. Qd4 {[%clk 0:01:19]}  Qxd4 {[%clk 0:01:48]} 30. Rxd4 {[%clk 0:01:17]}  Rxe6 {[%clk 0:01:49]} 31. Kf2 {[%clk 0:01:17]}  Re5 {[%clk 0:01:49]} 32. Kf3 {[%clk 0:01:17]}  h5 {[%clk 0:01:48]} 33. g3 {[%clk 0:01:16]}  Kf7 {[%clk 0:01:46]} 34. h4 {[%clk 0:01:17]}  Ra5 {[%clk 0:01:44]} 35. Rb4 {[%clk 0:01:17]}  Ra7 {[%clk 0:01:43]} 36. Rb6 {[%clk 0:01:16]}  Rd7 {[%clk 0:01:42]} 37. Rc6 {[%clk 0:01:16]}  Rd1 {[%clk 0:01:42]} 38. Rb6 {[%clk 0:01:16]}  Rf1+ {[%clk 0:01:42]} 39. Kg2 {[%clk 0:01:16]}  Rf5 {[%clk 0:01:43]} 40. Rc6 {[%clk 0:01:15]}  g5 {[%clk 0:01:35]} 41. hxg5 {[%clk 0:01:13]}  fxg5 {[%clk 0:01:36]} 42. Rh6 {[%clk 0:01:03]}  g4 {[%clk 0:01:33]} 43. Rc6 {[%clk 0:01:02]}  e6 {[%clk 0:01:33]} 44. Rc8 {[%clk 0:00:58]}  Kf6 {[%clk 0:01:33]} 45. Rc4 {[%clk 0:00:58]}  Ra5 {[%clk 0:01:32]} 46. Rc2 {[%clk 0:00:52]}  Ke5 {[%clk 0:01:32]} 47. Kf2 {[%clk 0:00:52]}  Rd5 {[%clk 0:01:29]} 48. Ke2 {[%clk 0:00:52]}  Rb5 {[%clk 0:01:27]} 49. Ra2 {[%clk 0:00:51]}  Rb4 {[%clk 0:01:25]} 50. Ra5+ {[%clk 0:00:50]}  Ke4 {[%clk 0:01:26]} 51. Ra2 {[%clk 0:00:49]}  Rc4 {[%clk 0:01:26]} 52. Rb2 {[%clk 0:00:49]}  Ra4 {[%clk 0:01:26]} 53. Rc2 {[%clk 0:00:48]}  Ra3 {[%clk 0:01:24]} 54. Rc4+ {[%clk 0:00:48]}  Kd5 {[%clk 0:01:24]} 55. Rc2 {[%clk 0:00:42]}  Ra1 {[%clk 0:01:18]} 56. Kf2 {[%clk 0:00:38]}  Ke4 {[%clk 0:01:13]} 57. Rc4+ {[%clk 0:00:37]}  Kf5 {[%clk 0:01:13]} 58. Rc5+ {[%clk 0:00:37]}  e5 {[%clk 0:01:14]} 59. Rc2 {[%clk 0:00:36]}  Ra4 {[%clk 0:01:14]} 60. Rb2 {[%clk 0:00:36]}  Ke4 {[%clk 0:01:14]} 61. Rc2 {[%clk 0:00:35]}  Ra8 {[%clk 0:01:12]} 62. Rb2 {[%clk 0:00:35]}  Rf8+ {[%clk 0:01:11]} 63. Ke2 {[%clk 0:00:25]}  Rf3 {[%clk 0:01:12]} 64. Rb4+ {[%clk 0:00:23]}  Kf5 {[%clk 0:01:12]} 65. e4+ {[%clk 0:00:23]}  Kf6 {[%clk 0:01:11]} 66. Rb6+ {[%clk 0:00:23]}  Kg5 {[%clk 0:01:12]} 67. Re6 {[%clk 0:00:20]}  Rxg3 {[%clk 0:01:12]} 68. Rxe5+ {[%clk 0:00:21]}  Kh4 {[%clk 0:01:13]} 69. Re8 {[%clk 0:00:20]}  Ra3 {[%clk 0:01:11]} 70. e5 {[%clk 0:00:20]}  Kg3 {[%clk 0:01:12]} 71. e6 {[%clk 0:00:20]}  Ra6 {[%clk 0:01:11]} 72. Kd3 {[%clk 0:00:10]}  h4 {[%clk 0:01:12]} 73. Kd4 {[%clk 0:00:08]}  h3 {[%clk 0:01:10]} 74. e7 {[%clk 0:00:09]}  Re6 {[%clk 0:01:09]} 75. Kd5 {[%clk 0:00:10]}  Re1 {[%clk 0:01:10]} 76. Kd6 {[%clk 0:00:10]}  h2 {[%clk 0:01:10]} 77. Rh8 {[%clk 0:00:10]}  Kg2 {[%clk 0:01:09]} 78. Rh6 {[%clk 0:00:09]}  Rxe7 {[%clk 0:01:08]} 79. Re6 {[%clk 0:00:09]}  Rxe6+ {[%clk 0:01:07]} 0-1


[Site "https://www.chess.com"]

[Event "Titled Tuesday Blitz January 11 2022"]
[White "Reprintsev, Alexander"]
[Black "Petrovskyi, Vadym"]
[WhiteFideId "14100541"]
[BlackFideId "14165210"]
[WhiteElo "2126"]
[BlackElo "2424"]
[Result "1-0"]
[Round "10"]
[TimeControl "180+1"]
[Date "2022.01.11"]
[WhiteClock "0:00:29"]
[BlackClock "0:00:19"]

1. e4 {[%clk 0:03:00]}  c5 {[%clk 0:02:59]} 2. b3 {[%clk 0:02:58]}  g6 {[%clk 0:02:51]} 3. Bb2 {[%clk 0:02:58]}  Nf6 {[%clk 0:02:51]} 4. e5 {[%clk 0:02:58]}  Nd5 {[%clk 0:02:51]} 5. Nc3 {[%clk 0:02:58]}  Nc7 {[%clk 0:02:50]} 6. d4 {[%clk 0:02:58]}  cxd4 {[%clk 0:02:50]} 7. Qxd4 {[%clk 0:02:58]}  Ne6 {[%clk 0:02:50]} 8. Qe4 {[%clk 0:02:58]}  Bg7 {[%clk 0:02:50]} 9. O-O-O {[%clk 0:02:57]}  O-O {[%clk 0:02:50]} 10. Nf3 {[%clk 0:02:58]}  Nc6 {[%clk 0:02:50]} 11. h4 {[%clk 0:02:57]}  Qa5 {[%clk 0:02:48]} 12. Bb5 {[%clk 0:02:44]}  Nb4 {[%clk 0:02:25]} 13. a4 {[%clk 0:02:25]}  Rd8 {[%clk 0:02:13]} 14. Nd5 {[%clk 0:02:13]}  Nxd5 {[%clk 0:02:07]} 15. Rxd5 {[%clk 0:02:13]}  Qc7 {[%clk 0:02:03]} 16. h5 {[%clk 0:02:07]}  a6 {[%clk 0:01:30]} 17. Bc4 {[%clk 0:02:04]}  b5 {[%clk 0:01:31]} 18. axb5 {[%clk 0:01:59]}  Bb7 {[%clk 0:01:31]} 19. hxg6 {[%clk 0:01:56]}  hxg6 {[%clk 0:01:29]} 20. bxa6 {[%clk 0:01:49]}  Bxd5 {[%clk 0:01:27]} 21. Qxd5 {[%clk 0:01:49]}  Qb6 {[%clk 0:01:04]} 22. Nd4 {[%clk 0:01:33]}  Rac8 {[%clk 0:00:56]} 23. Nxe6 {[%clk 0:01:30]}  dxe6 {[%clk 0:00:56]} 24. Qf3 {[%clk 0:01:27]}  Rxc4 {[%clk 0:00:50]} 25. bxc4 {[%clk 0:01:26]}  Qxa6 {[%clk 0:00:50]} 26. Rd1 {[%clk 0:01:08]}  Rxd1+ {[%clk 0:00:39]} 27. Qxd1 {[%clk 0:01:08]}  Qxc4 {[%clk 0:00:40]} 28. g3 {[%clk 0:01:04]}  Qd5 {[%clk 0:00:34]} 29. f4 {[%clk 0:01:02]}  Qg2 {[%clk 0:00:29]} 30. Qd3 {[%clk 0:01:00]}  Qg1+ {[%clk 0:00:25]} 31. Kd2 {[%clk 0:00:59]}  Qf2+ {[%clk 0:00:25]} 32. Kc3 {[%clk 0:00:59]}  g5 {[%clk 0:00:25]} 33. Bc1 {[%clk 0:00:52]}  gxf4 {[%clk 0:00:23]} 34. Bxf4 {[%clk 0:00:52]}  Qc5+ {[%clk 0:00:19]} 35. Kb3 {[%clk 0:00:46]}  Bxe5 {[%clk 0:00:20]} 36. Bxe5 {[%clk 0:00:46]}  Qxe5 {[%clk 0:00:21]} 37. c4 {[%clk 0:00:46]}  f5 {[%clk 0:00:19]} 38. Kb4 {[%clk 0:00:45]}  Qb8+ {[%clk 0:00:19]} 39. Ka5 {[%clk 0:00:44]}  Qc7+ {[%clk 0:00:19]} 40. Kb5 {[%clk 0:00:44]}  Qb7+ {[%clk 0:00:19]} 41. Ka5 {[%clk 0:00:44]}  Qa7+ {[%clk 0:00:19]} 42. Kb5 {[%clk 0:00:45]}  Qb8+ {[%clk 0:00:20]} 43. Ka5 {[%clk 0:00:44]}  Kf7 {[%clk 0:00:19]} 44. c5 {[%clk 0:00:44]}  Qc7+ {[%clk 0:00:19]} 45. Kb5 {[%clk 0:00:44]}  Qb7+ {[%clk 0:00:20]} 46. Ka5 {[%clk 0:00:44]}  Kg6 {[%clk 0:00:18]} 47. Qd8 {[%clk 0:00:28]}  e5 {[%clk 0:00:17]} 48. Qb6+ {[%clk 0:00:27]}  Qxb6+ {[%clk 0:00:16]} 49. cxb6 {[%clk 0:00:27]}  f4 {[%clk 0:00:15]} 50. gxf4 {[%clk 0:00:28]}  exf4 {[%clk 0:00:16]} 51. b7 {[%clk 0:00:28]}  e5 {[%clk 0:00:16]} 52. b8=Q {[%clk 0:00:28]}  Kf5 {[%clk 0:00:17]} 53. Kb4 {[%clk 0:00:28]}  f3 {[%clk 0:00:17]} 54. Kc3 {[%clk 0:00:28]}  Kf4 {[%clk 0:00:17]} 55. Kd2 {[%clk 0:00:29]}  f2 {[%clk 0:00:18]} 56. Ke2 {[%clk 0:00:29]}  f1=Q+ {[%clk 0:00:19]} 57. Kxf1 {[%clk 0:00:29]} 1-0


[Site "https://www.chess.com"]

[Event "Titled Tuesday Blitz January 11 2022"]
[White "Rustemov, Alexander"]
[Black "Williams, Simon K"]
[WhiteFideId "4119002"]
[BlackFideId "404454"]
[WhiteElo "2806"]
[BlackElo "2468"]
[Result "1-0"]
[Round "10"]
[TimeControl "180+1"]
[Date "2022.01.11"]
[WhiteClock "0:00:09"]
[BlackClock "0:00:09"]

1. d4 {[%clk 0:03:00]}  e6 {[%clk 0:02:58]} 2. Nf3 {[%clk 0:02:58]}  f5 {[%clk 0:02:58]} 3. g3 {[%clk 0:02:56]}  Nf6 {[%clk 0:02:58]} 4. Bg2 {[%clk 0:02:56]}  Be7 {[%clk 0:02:58]} 5. O-O {[%clk 0:02:55]}  O-O {[%clk 0:02:58]} 6. b3 {[%clk 0:02:55]}  a5 {[%clk 0:02:54]} 7. Bb2 {[%clk 0:02:53]}  a4 {[%clk 0:02:54]} 8. Qc1 {[%clk 0:02:21]}  Ne4 {[%clk 0:02:47]} 9. c4 {[%clk 0:02:03]}  Bf6 {[%clk 0:02:45]} 10. e3 {[%clk 0:01:57]}  d6 {[%clk 0:02:37]} 11. Nfd2 {[%clk 0:01:54]}  Nxd2 {[%clk 0:02:36]} 12. Nxd2 {[%clk 0:01:52]}  e5 {[%clk 0:02:35]} 13. dxe5 {[%clk 0:01:37]}  dxe5 {[%clk 0:02:35]} 14. Rd1 {[%clk 0:01:35]}  Qe8 {[%clk 0:02:24]} 15. Ba3 {[%clk 0:01:27]}  Be7 {[%clk 0:02:15]} 16. Bxe7 {[%clk 0:01:21]}  Qxe7 {[%clk 0:02:15]} 17. c5 {[%clk 0:01:17]}  Nc6 {[%clk 0:02:04]} 18. Qc3 {[%clk 0:01:15]}  e4 {[%clk 0:01:54]} 19. b4 {[%clk 0:01:07]}  Ne5 {[%clk 0:01:53]} 20. Nc4 {[%clk 0:01:02]}  Nxc4 {[%clk 0:01:47]} 21. Qxc4+ {[%clk 0:01:02]}  Be6 {[%clk 0:01:47]} 22. Qc3 {[%clk 0:00:58]}  Qf6 {[%clk 0:01:35]} 23. Qxf6 {[%clk 0:00:48]}  Rxf6 {[%clk 0:01:35]} 24. a3 {[%clk 0:00:48]}  Rff8 {[%clk 0:01:29]} 25. Rd4 {[%clk 0:00:48]}  Rfd8 {[%clk 0:01:25]} 26. Rad1 {[%clk 0:00:47]}  Rxd4 {[%clk 0:01:24]} 27. Rxd4 {[%clk 0:00:48]}  Kf7 {[%clk 0:01:23]} 28. f3 {[%clk 0:00:47]}  exf3 {[%clk 0:01:22]} 29. Bxf3 {[%clk 0:00:47]}  c6 {[%clk 0:01:23]} 30. Kf2 {[%clk 0:00:42]}  Ke7 {[%clk 0:01:22]} 31. e4 {[%clk 0:00:39]}  fxe4 {[%clk 0:01:15]} 32. Rxe4 {[%clk 0:00:37]}  Kf6 {[%clk 0:01:14]} 33. Ke3 {[%clk 0:00:35]}  Bb3 {[%clk 0:01:08]} 34. Rf4+ {[%clk 0:00:32]}  Ke7 {[%clk 0:01:04]} 35. Be4 {[%clk 0:00:28]}  h6 {[%clk 0:01:02]} 36. Bd3 {[%clk 0:00:26]}  Rd8 {[%clk 0:00:59]} 37. Rd4 {[%clk 0:00:26]}  Rf8 {[%clk 0:00:58]} 38. Re4+ {[%clk 0:00:25]}  Kd7 {[%clk 0:00:57]} 39. Rf4 {[%clk 0:00:25]}  Re8+ {[%clk 0:00:56]} 40. Re4 {[%clk 0:00:23]}  Rf8 {[%clk 0:00:54]} 41. Rd4+ {[%clk 0:00:22]}  Kc7 {[%clk 0:00:54]} 42. Rf4 {[%clk 0:00:21]}  Rd8 {[%clk 0:00:52]} 43. Re4 {[%clk 0:00:19]}  Rd7 {[%clk 0:00:47]} 44. h4 {[%clk 0:00:18]}  b6 {[%clk 0:00:45]} 45. cxb6+ {[%clk 0:00:18]}  Kxb6 {[%clk 0:00:45]} 46. Re5 {[%clk 0:00:18]}  Rf7 {[%clk 0:00:43]} 47. h5 {[%clk 0:00:17]}  Bd5 {[%clk 0:00:41]} 48. Be4 {[%clk 0:00:15]}  Bxe4 {[%clk 0:00:38]} 49. Kxe4 {[%clk 0:00:16]}  Rf1 {[%clk 0:00:38]} 50. Ra5 {[%clk 0:00:16]}  Rh1 {[%clk 0:00:26]} 51. g4 {[%clk 0:00:16]}  Rg1 {[%clk 0:00:27]} 52. Kf4 {[%clk 0:00:15]}  Rf1+ {[%clk 0:00:26]} 53. Kg3 {[%clk 0:00:16]}  Rf7 {[%clk 0:00:20]} 54. Rxa4 {[%clk 0:00:15]}  Kb5 {[%clk 0:00:19]} 55. Ra5+ {[%clk 0:00:16]}  Kb6 {[%clk 0:00:19]} 56. Ra8 {[%clk 0:00:11]}  Kb5 {[%clk 0:00:19]} 57. Rb8+ {[%clk 0:00:11]}  Kc4 {[%clk 0:00:19]} 58. Rb6 {[%clk 0:00:11]}  Kd5 {[%clk 0:00:19]} 59. Ra6 {[%clk 0:00:10]}  c5 {[%clk 0:00:18]} 60. Ra5 {[%clk 0:00:10]}  Ke4 {[%clk 0:00:17]} 61. Rxc5 {[%clk 0:00:10]}  Rf3+ {[%clk 0:00:17]} 62. Kh4 {[%clk 0:00:10]}  Rxa3 {[%clk 0:00:18]} 63. Rc7 {[%clk 0:00:10]}  Rb3 {[%clk 0:00:15]} 64. Rxg7 {[%clk 0:00:10]}  Rxb4 {[%clk 0:00:15]} 65. Rg6 {[%clk 0:00:10]}  Kf3 {[%clk 0:00:16]} 66. Kh3 {[%clk 0:00:08]}  Rb1 {[%clk 0:00:15]} 67. Rf6+ {[%clk 0:00:08]}  Ke4 {[%clk 0:00:16]} 68. Rxh6 {[%clk 0:00:08]}  Kf4 {[%clk 0:00:16]} 69. Rf6+ {[%clk 0:00:08]}  Kg5 {[%clk 0:00:16]} 70. Rf5+ {[%clk 0:00:09]}  Kh6 {[%clk 0:00:16]} 71. Kg3 {[%clk 0:00:09]}  Rb3+ {[%clk 0:00:16]} 72. Rf3 {[%clk 0:00:08]}  Rb1 {[%clk 0:00:16]} 73. Kf4 {[%clk 0:00:08]}  Rb4+ {[%clk 0:00:16]} 74. Kf5 {[%clk 0:00:08]}  Rb5+ {[%clk 0:00:15]} 75. Kf4 {[%clk 0:00:09]}  Rb4+ {[%clk 0:00:16]} 76. Kg3 {[%clk 0:00:10]}  Kg5 {[%clk 0:00:16]} 77. Rf5+ {[%clk 0:00:10]}  Kh6 {[%clk 0:00:16]} 78. Rf6+ {[%clk 0:00:10]}  Kg7 {[%clk 0:00:16]} 79. Rg6+ {[%clk 0:00:11]}  Kh7 {[%clk 0:00:15]} 80. Kh4 {[%clk 0:00:11]}  Rb1 {[%clk 0:00:15]} 81. Rf6 {[%clk 0:00:12]}  Kg7 {[%clk 0:00:16]} 82. Kg5 {[%clk 0:00:11]}  Rb5+ {[%clk 0:00:15]} 83. Rf5 {[%clk 0:00:12]}  Rb1 {[%clk 0:00:16]} 84. h6+ {[%clk 0:00:12]}  Kh7 {[%clk 0:00:16]} 85. Rf7+ {[%clk 0:00:11]}  Kg8 {[%clk 0:00:16]} 86. Rg7+ {[%clk 0:00:11]}  Kh8 {[%clk 0:00:16]} 87. Re7 {[%clk 0:00:11]}  Rb5+ {[%clk 0:00:15]} 88. Kg6 {[%clk 0:00:11]}  Rb6+ {[%clk 0:00:14]} 89. Kh5 {[%clk 0:00:11]}  Rb1 {[%clk 0:00:14]} 90. g5 {[%clk 0:00:12]}  Rb6 {[%clk 0:00:13]} 91. Rf7 {[%clk 0:00:11]}  Rc6 {[%clk 0:00:13]} 92. Rf6 {[%clk 0:00:11]}  Rc7 {[%clk 0:00:11]} 93. g6 {[%clk 0:00:10]}  Rc5+ {[%clk 0:00:10]} 94. Kg4 {[%clk 0:00:10]}  Rc4+ {[%clk 0:00:11]} 95. Rf4 {[%clk 0:00:11]}  Rc8 {[%clk 0:00:10]} 96. g7+ {[%clk 0:00:10]}  Kh7 {[%clk 0:00:09]} 97. Rf8 {[%clk 0:00:09]} 1-0


[Site "https://www.chess.com"]

[Event "Titled Tuesday Blitz January 11 2022"]
[White "Sargsyan, Anna M."]
[Black "Santos Ruiz, Miguel"]
[WhiteFideId "13308130"]
[BlackFideId "22291482"]
[WhiteElo "2271"]
[BlackElo "2486"]
[Result "1-0"]
[Round "10"]
[TimeControl "180+1"]
[Date "2022.01.11"]
[WhiteClock "0:00:10"]
[BlackClock "0:00:07"]

1. d4 {[%clk 0:03:00]}  Nf6 {[%clk 0:02:59]} 2. c4 {[%clk 0:03:01]}  e6 {[%clk 0:03:00]} 3. Nf3 {[%clk 0:03:01]}  d5 {[%clk 0:03:00]} 4. Nc3 {[%clk 0:03:00]}  dxc4 {[%clk 0:02:58]} 5. e4 {[%clk 0:02:55]}  Bb4 {[%clk 0:02:56]} 6. Bg5 {[%clk 0:02:53]}  h6 {[%clk 0:02:54]} 7. Bxf6 {[%clk 0:02:51]}  Qxf6 {[%clk 0:02:55]} 8. Bxc4 {[%clk 0:02:51]}  c5 {[%clk 0:02:55]} 9. O-O {[%clk 0:02:51]}  cxd4 {[%clk 0:02:56]} 10. e5 {[%clk 0:02:51]}  Qd8 {[%clk 0:02:55]} 11. Ne4 {[%clk 0:02:51]}  Nc6 {[%clk 0:02:52]} 12. Qe2 {[%clk 0:02:47]}  Bd7 {[%clk 0:02:48]} 13. Rad1 {[%clk 0:02:44]}  Qc7 {[%clk 0:02:45]} 14. Ng3 {[%clk 0:02:40]}  Be7 {[%clk 0:02:36]} 15. Bd3 {[%clk 0:02:36]}  Nb4 {[%clk 0:02:32]} 16. Be4 {[%clk 0:02:31]}  d3 {[%clk 0:02:31]} 17. Qe3 {[%clk 0:02:27]}  Bc6 {[%clk 0:02:27]} 18. a3 {[%clk 0:02:20]}  Nd5 {[%clk 0:02:13]} 19. Qxd3 {[%clk 0:02:16]}  O-O {[%clk 0:02:13]} 20. Nh5 {[%clk 0:02:12]}  Rfd8 {[%clk 0:02:11]} 21. Qe2 {[%clk 0:02:08]}  g6 {[%clk 0:01:59]} 22. Ng3 {[%clk 0:02:02]}  Kg7 {[%clk 0:01:53]} 23. Bb1 {[%clk 0:01:50]}  a6 {[%clk 0:01:51]} 24. Rc1 {[%clk 0:01:36]}  Qb6 {[%clk 0:01:50]} 25. Rfe1 {[%clk 0:01:24]}  Nf4 {[%clk 0:01:47]} 26. Qc4 {[%clk 0:01:13]}  Bxf3 {[%clk 0:01:13]} 27. Qxf4 {[%clk 0:01:13]}  Bc6 {[%clk 0:01:12]} 28. h4 {[%clk 0:01:10]}  Rd4 {[%clk 0:01:10]} 29. Qe3 {[%clk 0:01:00]}  Rad8 {[%clk 0:00:46]} 30. Ne2 {[%clk 0:00:52]}  Qxb2 {[%clk 0:00:46]} 31. Nxd4 {[%clk 0:00:49]}  Qxd4 {[%clk 0:00:44]} 32. Be4 {[%clk 0:00:36]}  Bxa3 {[%clk 0:00:37]} 33. Qxa3 {[%clk 0:00:32]}  Bxe4 {[%clk 0:00:37]} 34. Qe7 {[%clk 0:00:31]}  Bc6 {[%clk 0:00:35]} 35. Qf6+ {[%clk 0:00:17]}  Kg8 {[%clk 0:00:34]} 36. Re3 {[%clk 0:00:16]}  Rd5 {[%clk 0:00:31]} 37. h5 {[%clk 0:00:14]}  g5 {[%clk 0:00:22]} 38. Qxh6 {[%clk 0:00:13]}  Rxe5 {[%clk 0:00:22]} 39. Rce1 {[%clk 0:00:06]}  Qg4 {[%clk 0:00:16]} 40. f3 {[%clk 0:00:04]}  Qd4 {[%clk 0:00:16]} 41. Kh1 {[%clk 0:00:04]}  Rxe3 {[%clk 0:00:16]} 42. Qxg5+ {[%clk 0:00:04]}  Kh7 {[%clk 0:00:16]} 43. Qxe3 {[%clk 0:00:04]}  Qh4+ {[%clk 0:00:15]} 44. Kg1 {[%clk 0:00:04]}  Qxh5 {[%clk 0:00:16]} 45. Qd3+ {[%clk 0:00:04]}  Qg6 {[%clk 0:00:17]} 46. Qxg6+ {[%clk 0:00:05]}  Kxg6 {[%clk 0:00:17]} 47. Kf2 {[%clk 0:00:05]}  a5 {[%clk 0:00:18]} 48. Ra1 {[%clk 0:00:04]}  a4 {[%clk 0:00:19]} 49. Ke3 {[%clk 0:00:04]}  b5 {[%clk 0:00:19]} 50. Kd4 {[%clk 0:00:05]}  Bd5 {[%clk 0:00:20]} 51. Kc5 {[%clk 0:00:06]}  Bc4 {[%clk 0:00:21]} 52. g4 {[%clk 0:00:05]}  Kg5 {[%clk 0:00:20]} 53. Ra3 {[%clk 0:00:05]}  Kf4 {[%clk 0:00:20]} 54. Kd4 {[%clk 0:00:06]}  Bb3 {[%clk 0:00:19]} 55. Kc5 {[%clk 0:00:05]}  Kxf3 {[%clk 0:00:18]} 56. Kxb5 {[%clk 0:00:05]}  Kxg4 {[%clk 0:00:19]} 57. Ra1 {[%clk 0:00:06]}  f5 {[%clk 0:00:19]} 58. Kc5 {[%clk 0:00:06]}  f4 {[%clk 0:00:19]} 59. Kd4 {[%clk 0:00:07]}  f3 {[%clk 0:00:20]} 60. Ke3 {[%clk 0:00:07]}  Bd5 {[%clk 0:00:13]} 61. Rxa4+ {[%clk 0:00:08]}  Kg3 {[%clk 0:00:13]} 62. Rf4 {[%clk 0:00:08]}  e5 {[%clk 0:00:12]} 63. Rf5 {[%clk 0:00:08]}  Kg2 {[%clk 0:00:10]} 64. Rxe5 {[%clk 0:00:08]}  f2 {[%clk 0:00:09]} 65. Rg5+ {[%clk 0:00:08]}  Kh2 {[%clk 0:00:07]} 66. Kxf2 {[%clk 0:00:09]}  Be6 {[%clk 0:00:06]} 67. Rh5+ {[%clk 0:00:08]}  Bh3 {[%clk 0:00:07]} 68. Rh6 {[%clk 0:00:09]}  Kh1 {[%clk 0:00:07]} 69. Rxh3# {[%clk 0:00:10]} 1-0


[Site "https://www.chess.com"]